bitfinex-derivatives/quotes_BTCF0:USTF0_20251208
["timestamp","ask_amount","ask_price","bid_price","bid_amount"]
[1765199887916,0.1027,91784.0,91783.0,0.1156743]
[1765199888307,0.004,91784.0,91783.0,0.1156743]
[1765199893522,0.05037347,91793.0,91792.0,0.1114233]
[1765199893816,0.09778347,91793.0,91792.0,0.1114233]
[1765199895122,0.10478347,91793.0,91792.0,0.1144233]
[1765199895322,0.10478347,91793.0,91792.0,0.0138933]
[1765199896320,0.10478347,91793.0,91792.0,0.003]
[1765199896825,0.10478347,91793.0,91792.0,0.05168]
[1765199897021,0.10478347,91793.0,91792.0,0.1004]
[1765199897220,0.10478347,91793.0,91792.0,0.003]
[1765199897527,0.10478347,91793.0,91792.0,0.05168]
[1765199898928,0.10478347,91793.0,91792.0,0.1004]
[1765199899923,0.10478347,91793.0,91792.0,0.05168]
[1765199900230,0.10478347,91793.0,91792.0,0.003]
[1765199903621,0.1085142,91785.0,91784.0,0.0108942]
[1765199903820,0.1085146,91782.0,91781.0,0.0108945]
[1765199904423,0.09762,91782.0,91781.0,0.0108945]
[1765199904926,0.0108942,91785.0,91784.0,0.1082942]
[1765199904927,0.05171,91785.0,91784.0,0.1082942]
[1765199905227,0.09962,91785.0,91784.0,0.1082942]
[1765199905429,0.09762,91785.0,91784.0,0.1082942]
[1765199906933,0.09962,91785.0,91784.0,0.1092942]
[1765199907318,0.10162,91785.0,91784.0,0.1102942]
[1765199908036,0.10162,91785.0,91784.0,0.0615742]
[1765199908228,0.10162,91785.0,91784.0,0.1102942]
[1765199908419,0.004,91785.0,91784.0,0.1102942]
[1765199908618,0.004,91785.0,91784.0,0.1279542]
[1765199909333,0.02902,91800.0,91792.0,0.1082933]
[1765199909525,0.0108913,91809.0,91792.0,0.1315633]
[1765199909726,0.07922,91808.0,91807.0,0.0595715]
[1765199909927,0.12813,91808.0,91807.0,0.1082915]
[1765199910530,0.04871,91808.0,91807.0,0.1082915]
[1765199910732,0.0585811,91822.0,91815.0,0.1082905]
[1765199910937,0.09762,91822.0,91821.0,0.0974]
[1765199912135,0.09762,91822.0,91821.0,0.04868]
[1765199912837,0.10362,91822.0,91821.0,0.0984]
[1765199913734,0.11562,91822.0,91821.0,0.1004]
[1765199913936,0.11562,91822.0,91821.0,0.003]
[1765199914137,0.10962,91822.0,91821.0,0.002]
[1765199914336,0.09762,91814.0,91813.0,0.0108907]
[1765199914537,0.09762,91810.0,91809.0,0.0108912]
[1765199916038,0.09962,91810.0,91809.0,0.0108912]
[1765199916442,0.09762,91799.0,91798.0,0.05973607]
[1765199916743,0.09762,91799.0,91798.0,0.10845607]
[1765199917240,0.09762,91799.0,91798.0,0.01105607]
[1765199917438,0.09762,91799.0,91798.0,0.10845607]
[1765199918032,0.09862,91799.0,91798.0,0.11245607]
[1765199918436,0.10062,91799.0,91798.0,0.11245607]
[1765199918636,0.10162,91799.0,91798.0,0.10945607]
[1765199920142,0.09962,91799.0,91798.0,0.10845607]
[1765199920443,0.09962,91799.0,91773.0,0.1082955]
[1765199920444,0.09762,91774.0,91773.0,0.1082955]
[1765199920636,0.12813,91782.0,91781.0,0.1082946]
[1765199920943,0.09762,91782.0,91781.0,0.1082946]
[1765199922131,0.09962,91782.0,91781.0,0.1152946]
[1765199922643,0.12789,91782.0,91781.0,0.1152946]
[1765199923449,0.09762,91782.0,91781.0,0.1082946]
[1765199923641,0.001,91782.0,91781.0,0.1112946]
[1765199924034,0.001,91782.0,91781.0,0.1082946]
[1765199924339,0.12046338,91791.0,91790.0,0.0108935]
[1765199925450,0.12146338,91791.0,91790.0,0.0108935]
[1765199925845,0.12146338,91791.0,91781.0,0.003]
[1765199925846,0.1289545,91782.0,91781.0,0.003]
[1765199926439,0.08979,91780.0,91779.0,0.0108947]
[1765199926750,0.08979,91780.0,91779.0,0.0956947]
[1765199927639,0.09079,91780.0,91779.0,0.0966947]
[1765199927949,0.09179,91780.0,91779.0,0.0966947]
[1765199931845,0.1026847,91780.0,91779.0,0.0118947]
[1765199935948,0.1026847,91780.0,91779.0,0.001]
[1765199940853,0.09179,91780.0,91779.0,0.0858]
[1765199946158,0.09179,91780.0,91779.0,0.001]
[1765199946561,0.09179,91780.0,91779.0,0.04079]
[1765199946763,0.09179,91780.0,91779.0,0.08054]
[1765199950354,0.08679,91780.0,91779.0,0.08054]
[1765199954159,0.08679,91780.0,91779.0,0.001]
[1765199957359,0.07742,91773.0,91772.0,0.00016338]
[1765199957666,0.002,91780.0,91761.0,9.804e-05]
[1765199957667,0.0883168,91762.0,91761.0,9.804e-05]
[1765199958359,0.02442,91763.0,91746.0,0.0915687]
[1765199958360,0.07742,91747.0,91746.0,0.0915687]
[1765199959259,0.07753822,91747.0,91746.0,0.0915687]
[1765199959967,0.07853822,91747.0,91746.0,0.0925687]
[1765199960770,0.07953822,91747.0,91746.0,0.0925687]
[1765199961569,0.07953822,91747.0,91746.0,0.08167]
[1765199961769,0.07953822,91747.0,91746.0,0.04145]
[1765199962062,0.07742,91743.0,91742.0,0.0915691]
[1765199963370,0.07742,91739.0,91738.0,0.0915696]
[1765199964670,0.07742,91739.0,91738.0,0.0925696]
[1765199964870,0.0883196,91739.0,91738.0,0.0925696]
[1765199965066,0.0903196,91739.0,91738.0,0.0965696]
[1765199965369,0.0903196,91739.0,91738.0,0.08567]
[1765199967474,0.0903196,91739.0,91738.0,0.005]
[1765199968569,0.4128996,91739.0,91714.0,0.03910006]
[1765199968762,0.4128996,91739.0,91708.0,0.0915732]
[1765199968763,0.07742,91709.0,91708.0,0.0915732]
[1765199968961,0.08840245,91709.0,91708.0,0.08067]
[1765199969265,0.07749935,91709.0,91708.0,0.08067]
[1765199969477,0.08840245,91709.0,91708.0,0.08067]
[1765199969864,0.08940245,91709.0,91708.0,0.08567]
[1765199970660,0.08940245,91709.0,91708.0,0.08067]
[1765199970968,0.07849935,91709.0,91708.0,0.08067]
[1765199971361,0.08049935,91709.0,91708.0,0.001]
[1765199971562,0.08249935,91709.0,91708.0,0.001]
[1765199971768,0.07742,91704.0,91703.0,0.08076596]
[1765199971957,0.0883237,91704.0,91703.0,0.08076596]
[1765199974264,0.0883237,91704.0,91703.0,0.09166976]
[1765199974569,0.0913237,91704.0,91703.0,0.08176596]
[1765199975071,0.0913237,91704.0,91703.0,0.00109596]
[1765199975565,0.0913237,91704.0,91703.0,0.04154596]
[1765199976365,0.0913237,91704.0,91703.0,0.00109596]
[1765199977875,0.1127442,91700.0,91699.0,0.00016348]
[1765199979372,0.0883255,91690.0,91689.0,0.08067]
[1765199979672,0.08844329,91690.0,91689.0,0.08067]
[1765199980459,0.08944329,91690.0,91689.0,0.08367]
[1765199980658,0.08944329,91690.0,91689.0,0.04345]
[1765199980874,0.09144329,91690.0,91689.0,0.003]
[1765199981073,0.09144329,91690.0,91689.0,0.08367]
[1765199981270,0.09144329,91690.0,91678.0,0.0109067]
[1765199981271,0.0883267,91679.0,91678.0,0.0109067]
[1765199981574,0.0883267,91679.0,91678.0,0.0915767]
[1765199981769,0.010906,91686.0,91684.0,0.0109061]
[1765199981976,0.088326,91686.0,91685.0,0.08067]
[1765199982369,0.113266,91686.0,91685.0,0.08067]
[1765199982566,0.088326,91686.0,91685.0,0.091576]
[1765199982880,0.00211779,91690.0,91689.0,0.07377]
[1765199983568,0.00011779,91690.0,91689.0,0.07377]
[1765199984070,0.00611779,91690.0,91689.0,0.07477]
[1765199987878,0.08076779,91690.0,91689.0,0.07477]
[1765199993686,0.04509779,91690.0,91689.0,0.07477]
[1765199994379,0.00611779,91690.0,91689.0,0.07477]
[1765199996081,0.00016357,91699.0,91698.0,0.07377]
[1765199996283,0.0585811,91724.0,91698.0,0.07377]
[1765199996284,0.09959,91721.0,91720.0,0.0846718]
[1765199996783,0.09959,91721.0,91720.0,0.0109018]
[1765199996985,0.09968639,91721.0,91720.0,0.0109018]
[1765199997489,0.09968639,91721.0,91720.0,0.0476018]
[1765199997893,0.09968639,91721.0,91720.0,0.0846718]
[1765199998080,0.11268639,91721.0,91720.0,0.0846718]
[1765199998890,0.11868639,91721.0,91720.0,0.0856718]
[1765199999988,0.11868639,91721.0,91720.0,0.0119018]
[1765200000297,0.11868639,91721.0,91720.0,0.001]
[1765200000793,0.0855528,91712.0,91711.0,0.00016357]
[1765200001986,0.07865,91712.0,91711.0,0.04876647]
[1765200002287,0.07865,91712.0,91711.0,0.01206647]
[1765200002486,0.07865,91712.0,91711.0,0.08583647]
[1765200003087,0.08565,91712.0,91711.0,0.08683647]
[1765200003588,0.0965528,91712.0,91711.0,0.08683647]
[1765200003986,0.0965528,91712.0,91711.0,0.04976647]
[1765200004186,0.0965528,91712.0,91711.0,0.01306647]
[1765200004588,0.0965528,91712.0,91711.0,0.08370647]
[1765200005195,0.08565,91712.0,91711.0,0.08370647]
[1765200005588,0.011,91712.0,91711.0,0.08370647]
[1765200008591,9.639e-05,91721.0,91720.0,0.0815418]
[1765200008891,0.00016357,91730.0,91729.0,0.0815407]
[1765200009892,0.00016357,91730.0,91729.0,0.09179008]
[1765200010391,0.00316357,91730.0,91729.0,0.09879008]
[1765200010798,0.00116357,91730.0,91729.0,0.09479008]
[1765200010991,0.00316357,91730.0,91729.0,0.09879008]
[1765200011902,0.00216357,91730.0,91729.0,0.09579008]
[1765200012102,0.00316357,91730.0,91729.0,0.09979008]
[1765200012694,0.00316357,91730.0,91729.0,0.10679008]
[1765200013202,0.00016357,91730.0,91729.0,0.10179008]
[1765200013397,0.00316357,91730.0,91729.0,0.10579008]
[1765200013708,0.00304838,91730.0,91729.0,0.10579008]
[1765200013907,0.03748838,91730.0,91729.0,0.09979008]
[1765200015101,0.03648838,91730.0,91729.0,0.09679008]
[1765200015409,0.00104838,91730.0,91729.0,0.09679008]
[1765200015704,0.00204838,91730.0,91729.0,0.09879008]
[1765200016411,0.00204838,91730.0,91729.0,0.09779008]
[1765200016596,0.00204838,91730.0,91729.0,0.09679008]
[1765200016799,0.00304838,91730.0,91729.0,0.10079008]
[1765200017105,0.00304838,91730.0,91729.0,0.10579008]
[1765200017603,0.00304838,91730.0,91729.0,0.10679008]
[1765200018104,0.00204838,91730.0,91729.0,0.10279008]
[1765200018302,0.00304838,91730.0,91729.0,0.10579008]
[1765200019110,0.00304838,91730.0,91729.0,0.10779008]
[1765200189626,0.03368,91729.0,91728.0,0.08406]
[1765200190731,0.03377083,91729.0,91728.0,0.08406]
[1765200191122,0.04477083,91729.0,91728.0,0.08506]
[1765200192424,0.04977083,91729.0,91728.0,0.002]
[1765200192927,0.04977083,91729.0,91728.0,0.03355]
[1765200193126,0.03377083,91729.0,91728.0,0.08324]
[1765200193327,0.05077083,91729.0,91728.0,0.08524]
[1765200193727,0.03977083,91729.0,91728.0,0.08424]
[1765200193933,0.05177083,91729.0,91728.0,0.08524]
[1765200194933,0.55925083,91729.0,91728.0,0.08524]
[1765200196334,0.54125083,91729.0,91728.0,0.08324]
[1765200196636,0.55925083,91729.0,91728.0,0.08524]
[1765200197033,0.54725083,91729.0,91728.0,0.08424]
[1765200197231,0.55925083,91729.0,91728.0,0.002]
[1765200198029,0.0729024,91715.0,91714.0,0.06342]
[1765200198230,0.0729024,91715.0,91710.0,0.01982]
[1765200198231,0.0729029,91711.0,91710.0,0.05137]
[1765200198431,0.062,91705.0,91704.0,0.06342]
[1765200198626,0.5804236,91705.0,91704.0,0.03155]
[1765200199025,0.5804236,91705.0,91704.0,0.06342]
[1765200199231,0.0729057,91688.0,91686.0,0.01982]
[1765200199432,0.0729057,91688.0,91687.0,0.06342]
[1765200199733,0.07303752,91688.0,91687.0,0.06342]
[1765200200432,0.04323752,91688.0,91687.0,0.06342]
[1765200201637,0.01203752,91688.0,91687.0,0.06842]
[1765200202133,0.00113182,91688.0,91687.0,0.06842]
[1765200204643,0.10102535,91697.0,91687.0,0.06842]
[1765200204644,0.11192995,91697.0,91696.0,0.06342]
[1765200204942,0.0729046,91697.0,91696.0,0.06342]
[1765200205338,0.0729046,91697.0,91696.0,0.03155]
[1765200205538,0.07300019,91697.0,91696.0,0.06342]
[1765200205738,0.07500019,91697.0,91696.0,0.06342]
[1765200206446,0.07900019,91697.0,91696.0,0.06442]
[1765200210046,0.07900019,91697.0,91696.0,0.001]
[1765200210441,0.0109066,91680.0,91673.0,0.0109074]
[1765200210743,0.062,91662.0,91661.0,0.05166]
[1765200211746,0.06208206,91662.0,91661.0,0.05166]
[1765200212445,0.00208206,91662.0,91661.0,0.06066]
[1765200213251,0.06408206,91662.0,91661.0,0.06066]
[1765200213550,0.00108206,91662.0,91661.0,0.05966]
[1765200214143,3.61e-06,91671.0,91670.0,0.0625678]
[1765200214349,0.13322535,91690.0,91689.0,0.05134]
[1765200214550,0.062,91690.0,91689.0,0.05134]
[1765200215049,0.07299821,91690.0,91689.0,0.05134]
[1765200215747,0.07899821,91690.0,91689.0,0.05234]
[1765200216342,0.00609281,91690.0,91689.0,0.05234]
[1765200217255,0.00909281,91690.0,91689.0,0.05334]
[1765200218847,0.00909281,91690.0,91689.0,0.002]
[1765200218848,0.07109281,91690.0,91689.0,0.002]
[1765200219453,0.07109281,91690.0,91689.0,0.05332]
[1765200224453,0.07109281,91690.0,91689.0,0.02766]
[1765200224871,0.07109281,91690.0,91680.0,0.00016361]
[1765200224872,0.0853665,91681.0,91680.0,0.00016361]
[1765200225073,0.07446,91662.0,91661.0,0.07663473]
[1765200225266,0.07446,91651.0,91650.0,0.0856401]
[1765200225464,0.08546161,91662.0,91661.0,0.07473]
[1765200225765,9.281e-05,91662.0,91661.0,0.07473]
[1765200226368,0.00109281,91662.0,91661.0,0.08173]
[1765200226771,0.00109281,91662.0,91661.0,0.07573]
[1765200226971,0.00209281,91662.0,91661.0,0.07573]
[1765200229776,0.03789281,91662.0,91661.0,0.07573]
[1765200229981,0.07376281,91662.0,91661.0,0.07573]
[1765200230472,0.07376281,91662.0,91661.0,0.001]
[1765200231779,0.07376281,91662.0,91661.0,8.155e-05]
[1765200231983,0.03725281,91662.0,91661.0,0.03589]
[1765200232277,0.00209281,91662.0,91661.0,0.07444]
[1765200233499,0.00016361,91671.0,91670.0,0.0853478]
[1765200233782,0.0109057,91688.0,91687.0,0.07444]
[1765200233976,0.0819357,91688.0,91687.0,0.07444]
[1765200235083,0.0879357,91688.0,91687.0,0.07544]
[1765200235585,0.1088557,91688.0,91687.0,0.07544]
[1765200235884,0.1549214,91688.0,91687.0,0.07544]
[1765200236076,0.1907914,91688.0,91687.0,0.07544]
[1765200236673,0.1907914,91688.0,91687.0,0.001]
[1765200240587,0.0819357,91688.0,91687.0,0.001]
[1765200241184,0.0819357,91688.0,91645.0,0.0585371]
[1765200241185,0.0998701,91650.0,91649.0,0.08335]
[1765200241386,0.5972,91663.0,91662.0,0.08335]
[1765200241589,0.6081086,91663.0,91662.0,0.08335]
[1765200241886,0.0547281,91668.0,91667.0,0.04162]
[1765200242082,0.0547281,91668.0,91667.0,0.08335]
[1765200242384,0.0998681,91668.0,91667.0,0.08335]
[1765200243185,0.0109081,91668.0,91667.0,0.08335]
[1765200243386,0.1018681,91668.0,91667.0,0.08435]
[1765200245284,0.1018681,91668.0,91667.0,0.04273]
[1765200246390,0.1018681,91668.0,91667.0,0.001]
[1765200248193,0.1018681,91668.0,91667.0,0.08435]
[1765200248399,0.5650881,91668.0,91667.0,0.08435]
[1765200248697,0.55418,91668.0,91667.0,0.08435]
[1765200250794,0.59932,91668.0,91667.0,0.08435]
[1765200252194,0.59932,91668.0,91667.0,0.0438]
[1765200252489,0.59948,91668.0,91667.0,0.001]
[1765200255890,0.08348,91644.0,91643.0,0.08287]
[1765200256091,0.00016361,91653.0,91652.0,0.08287]
[1765200256396,0.002,91668.0,91667.0,0.08287]
[1765200256796,0.0943893,91657.0,91656.0,0.10777]
[1765200257099,0.096388,91668.0,91667.0,0.0428]
[1765200257698,0.0943891,91659.0,91658.0,0.08303361]
[1765200258001,0.0109091,91659.0,91658.0,0.08303361]
[1765200258198,0.054258,91668.0,91667.0,0.08287]
[1765200258399,0.0109077,91671.0,91670.0,0.08287]
[1765200258690,0.0522577,91671.0,91670.0,0.08287]
[1765200258900,0.04135,91671.0,91670.0,0.08287]
[1765200259099,0.50852,91674.0,91673.0,0.08287]
[1765200259397,0.04135,91674.0,91673.0,0.08287]
[1765200259998,0.0943891,91659.0,91658.0,0.00016361]
[1765200262503,0.0943911,91643.0,91642.0,0.08287]
[1765200262996,0.50872,91653.0,91631.0,0.0109124]
[1765200262997,0.0943923,91632.0,91631.0,0.12189473]
[1765200263199,0.0109111,91642.0,91624.0,0.0428]
[1765200263200,0.08348,91625.0,91624.0,0.0428]
[1765200263390,0.47972,91625.0,91624.0,0.08287]
[1765200263591,0.08348,91622.0,91621.0,0.10287]
[1765200264391,0.08348,91622.0,91621.0,0.02]
[1765200265603,0.08648,91622.0,91621.0,0.025]
[1765200265988,0.0943968,91594.0,91593.0,0.0070483]
[1765200266195,0.0943968,91594.0,91593.0,0.0899183]
[1765200266196,0.3781568,91594.0,91593.0,0.0899183]
[1765200267204,0.37827293,91594.0,91593.0,0.0899183]
[1765200267398,0.60351293,91594.0,91593.0,0.0899183]
[1765200267601,0.00016371,91603.0,91602.0,0.08287]
[1765200268303,0.0109132,91625.0,91621.0,0.08287]
[1765200268497,0.0109101,91651.0,91620.0,0.0249]
[1765200268498,0.0586149,91643.0,91642.0,0.08287]
[1765200268700,0.0943912,91641.0,91640.0,0.08287]
[1765200268903,0.4003512,91641.0,91640.0,0.08287]
[1765200269091,0.0943912,91641.0,91640.0,0.08287]
[1765200270002,0.1023912,91641.0,91640.0,0.08287]
[1765200270305,0.1023912,91641.0,91640.0,0.10777]
[1765200270495,0.04935,91641.0,91640.0,0.10777]
[1765200270702,0.0309381,91641.0,91640.0,0.10777]
[1765200271901,0.008,91641.0,91640.0,0.10777]
[1765200272094,0.09148,91641.0,91640.0,0.08287]
[1765200272798,0.09148,91641.0,91640.0,0.10777]
[1765200272799,0.008,91641.0,91640.0,0.10777]
[1765200274102,0.04935,91641.0,91640.0,0.10777]
[1765200275009,0.0602612,91641.0,91640.0,0.10777]
[1765200275509,0.008,91641.0,91640.0,0.10777]
[1765200276606,0.04935,91641.0,91640.0,0.10777]
[1765200276796,0.09148,91641.0,91640.0,0.10777]
[1765200277002,0.09148,91641.0,91640.0,0.08287]
[1765200277400,0.09148,91641.0,91631.0,0.00016371]
[1765200277401,0.08348,91632.0,91631.0,0.08303371]
[1765200278010,0.0943915,91640.0,91631.0,0.00016371]
[1765200278207,0.0943915,91640.0,91639.0,0.08287]
[1765200278610,0.0522615,91640.0,91639.0,0.08287]
[1765200278911,0.0943915,91640.0,91639.0,0.08287]
[1765200279215,0.008,91641.0,91640.0,0.08287]
[1765200280708,0.008,91641.0,91638.0,0.0358115]
[1765200280709,0.00016371,91650.0,91649.0,0.0937803]
[1765200281414,0.0109082,91667.0,91666.0,0.08287]
[1765200281806,0.03387972,91667.0,91666.0,0.08287]
[1765200282202,0.11616972,91667.0,91666.0,0.08287]
[1765200283016,0.0938588,91661.0,91660.0,0.08315]
[1765200283218,0.11683032,91661.0,91660.0,0.08315]
[1765200283521,0.08295,91658.0,91657.0,0.00016371]
[1765200283816,0.10592152,91658.0,91657.0,0.04053371]
[1765200284211,0.10592152,91658.0,91657.0,0.00016371]
[1765200284418,0.11683072,91658.0,91657.0,0.00016371]
[1765200284813,0.0529212,91641.0,91640.0,0.08315]
[1765200286217,0.0529212,91641.0,91640.0,0.08415]
[1765200286218,0.11983837,91641.0,91640.0,0.08415]
[1765200287315,0.12183837,91641.0,91640.0,0.09015]
[1765200291321,0.08089837,91641.0,91640.0,0.09015]
[1765200291718,0.02797717,91641.0,91640.0,0.09015]
[1765200291923,0.00016371,91650.0,91649.0,0.08315]
[1765200292117,0.0109081,91668.0,91667.0,0.08315]
[1765200292324,0.03390945,91668.0,91667.0,0.08315]
[1765200292819,0.07591945,91668.0,91667.0,0.08315]
[1765200293124,0.11685945,91668.0,91667.0,0.08315]
[1765200293423,0.02300135,91668.0,91667.0,0.08315]
[1765200293814,0.02700135,91668.0,91667.0,0.08315]
[1765200294422,0.02800135,91668.0,91667.0,0.08615]
[1765200296024,0.11095135,91668.0,91667.0,0.08615]
[1765200299634,0.07001135,91668.0,91667.0,0.08615]
[1765200299932,0.10856135,91668.0,91667.0,0.08615]
[1765200300335,0.02800135,91668.0,91667.0,0.0970581]
[1765200300522,0.00016371,91677.0,91676.0,0.0109071]
[1765200300723,0.00016371,91677.0,91676.0,0.0911671]
[1765200301535,0.00016371,91677.0,91676.0,0.08026]
[1765200301728,0.00016371,91677.0,91676.0,0.04197]
[1765200301729,0.08128371,91677.0,91676.0,0.04197]
[1765200301928,0.08128371,91677.0,91676.0,0.001]
[1765200302132,0.08128371,91677.0,91676.0,0.04197]
[1765200302429,0.08328371,91677.0,91676.0,0.08626]
[1765200303329,0.07828371,91677.0,91676.0,0.005]
[1765200303532,0.08228371,91677.0,91676.0,0.006]
[1765200303731,0.08128371,91677.0,91676.0,0.001]
[1765200303921,0.08428371,91677.0,91676.0,0.04297]
[1765200304335,0.08428371,91677.0,91676.0,0.08126]
[1765200304336,0.08128371,91677.0,91676.0,0.08126]
[1765200304526,0.00816371,91677.0,91676.0,0.08226]
[1765200305033,0.00316371,91677.0,91676.0,0.08026]
[1765200305337,0.00616371,91677.0,91676.0,0.08026]
[1765200305835,0.00516371,91677.0,91676.0,0.08026]
[1765200306234,0.04373371,91677.0,91676.0,0.08026]
[1765200306535,0.04173371,91677.0,91676.0,0.08026]
[1765200306832,0.04173371,91677.0,91676.0,0.08126]
[1765200307134,0.08028371,91677.0,91676.0,0.001]
[1765200307436,0.07728371,91677.0,91676.0,0.001]
[1765200307630,0.03873371,91677.0,91676.0,0.08226]
[1765200307826,0.07728371,91677.0,91676.0,0.08226]
[1765200308029,0.07728371,91677.0,91676.0,0.04197]
[1765200308222,0.03857,91666.0,91665.0,0.10284]
[1765200308626,0.07712,91674.0,91673.0,0.08026]
[1765200309238,0.0880273,91674.0,91673.0,0.08026]
[1765200309738,0.0910273,91674.0,91673.0,0.08126]
[1765200310638,0.0169073,91674.0,91673.0,0.08126]
[1765200311153,0.0524773,91674.0,91673.0,0.08026]
[1765200311333,0.0554773,91674.0,91673.0,0.08126]
[1765200311731,0.0940273,91674.0,91673.0,0.08126]
[1765200312131,0.003,91674.0,91673.0,0.08026]
[1765200312441,0.005,91674.0,91673.0,0.08126]
[1765200313642,0.002,91674.0,91673.0,0.08126]
[1765200313842,0.005,91674.0,91673.0,0.08126]
[1765200314643,0.003,91674.0,91673.0,0.08026]
[1765200314839,0.005,91674.0,91673.0,0.08026]
[1765200315040,0.0949673,91674.0,91673.0,0.08026]
[1765200315440,0.1162173,91674.0,91673.0,0.08026]
[1765200315644,0.1182173,91674.0,91673.0,0.04097]
[1765200315940,0.0949673,91674.0,91673.0,0.08179]
[1765200316441,0.005,91674.0,91673.0,0.08179]
[1765200317347,0.002,91674.0,91673.0,0.08179]
[1765200317540,0.005,91674.0,91673.0,0.08179]
[1765200317947,0.004,91674.0,91673.0,0.08179]
[1765200318147,0.001,91674.0,91673.0,0.08179]
[1765200318346,0.002,91674.0,91673.0,0.08179]
[1765200320646,0.001,91674.0,91673.0,0.08179]
[1765200320851,0.00016371,91677.0,91676.0,0.08005]
[1765200321953,0.00216371,91677.0,91676.0,0.08005]
[1765200322548,0.00316371,91677.0,91676.0,0.08005]
[1765200323040,0.04294371,91677.0,91676.0,0.08005]
[1765200323245,0.08222371,91677.0,91676.0,0.08005]
[1765200329051,0.00316371,91677.0,91676.0,0.08005]
[1765200329554,0.05385061,91677.0,91676.0,0.08005]
[1765200329956,0.09313061,91677.0,91676.0,0.08005]
[1765200330357,0.08222371,91677.0,91676.0,0.08005]
[1765200331646,0.00316371,91677.0,91676.0,0.08005]
[1765200333250,0.04294371,91677.0,91676.0,0.08005]
[1765200333560,0.00316371,91677.0,91676.0,0.08005]
[1765200334250,0.04294371,91677.0,91676.0,0.08005]
[1765200335060,0.00316371,91677.0,91676.0,0.08005]
[1765200340060,0.00216371,91677.0,91676.0,0.08005]
[1765200340259,0.00316371,91677.0,91676.0,0.08005]
[1765200340561,0.00216371,91677.0,91676.0,0.08005]
[1765200340960,0.08122371,91677.0,91676.0,0.08005]
[1765200346358,0.00216371,91677.0,91676.0,0.08005]
[1765200346763,0.03608371,91677.0,91676.0,0.08005]
[1765200347360,0.07165371,91677.0,91676.0,0.08005]
[1765200352263,0.00216371,91677.0,91676.0,0.08005]
[1765200359972,0.07032371,91677.0,91676.0,0.08005]
[1765200361569,0.099668,91668.0,91665.0,0.03913237]
[1765200361768,0.099668,91668.0,91656.0,0.03913237]
[1765200361769,0.06816,91659.0,91656.0,0.03913237]
[1765200361972,0.06816,91659.0,91655.0,0.03913237]
[1765200362160,0.06816,91659.0,91646.0,0.0109105]
[1765200362361,0.06816,91659.0,91641.0,0.03913237]
[1765200362567,0.06816,91642.0,91641.0,0.06913]
[1765200363468,0.06816,91634.0,91633.0,0.06913]
[1765200363677,0.06816,91634.0,91633.0,0.0800422]
[1765200363863,0.06832371,91651.0,91650.0,0.06913]
[1765200364068,0.00016371,91651.0,91650.0,0.06913]
[1765200365967,0.00116371,91651.0,91650.0,0.06913]
[1765200366568,0.00416371,91651.0,91650.0,0.06913]
[1765200366876,0.00316371,91651.0,91650.0,0.07013]
[1765200367077,0.00016371,91651.0,91650.0,0.07013]
[1765200368070,0.06816,91665.0,91664.0,0.06913]
[1765200368276,0.03449,91665.0,91664.0,0.06913]
[1765200368476,0.079068,91669.0,91668.0,0.06913]
[1765200370182,0.080068,91669.0,91668.0,0.06913]
[1765200370372,0.06916,91669.0,91668.0,0.080038]
[1765200370574,0.001,91669.0,91668.0,0.080038]
[1765200371188,0.004,91669.0,91668.0,0.080038]
[1765200371776,0.07216,91669.0,91668.0,0.080038]
[1765200372176,0.07216,91669.0,91668.0,0.06913]
[1765200372474,0.074859,91660.0,91659.0,0.00016371]
[1765200372875,0.06395,91639.0,91638.0,0.03199]
[1765200373174,0.0748608,91645.0,91644.0,0.06522]
[1765200373579,0.06395,91645.0,91644.0,0.06522]
[1765200373980,0.06411371,91654.0,91653.0,0.06522]
[1765200374375,0.00016371,91654.0,91653.0,0.06522]
[1765200375484,0.00116371,91654.0,91653.0,0.06522]
[1765200377986,0.03335,91676.0,91675.0,0.03323]
[1765200378174,0.0748571,91676.0,91675.0,0.06522]
[1765200378578,0.06395,91666.0,91665.0,0.06522]
[1765200378980,0.08309,91674.0,91673.0,0.06522]
[1765200379184,0.06395,91674.0,91673.0,0.06522]
[1765200380276,0.06695,91674.0,91673.0,0.06522]
[1765200380784,0.06395,91674.0,91673.0,0.06522]
[1765200381087,0.06695,91674.0,91673.0,0.06522]
[1765200381288,0.06795,91674.0,91673.0,0.06522]
[1765200383887,0.06795,91674.0,91663.0,0.06522]
[1765200383888,0.0939986,91664.0,91663.0,0.06522]
[1765200384089,0.08309,91664.0,91663.0,0.03199]
[1765200384289,0.08309,91664.0,91663.0,0.06522]
[1765200385085,0.08309,91664.0,91663.0,0.06622]
[1765200386287,0.06695,91664.0,91663.0,0.06622]
[1765200386793,0.06795,91664.0,91663.0,0.06522]
[1765200387506,0.06695,91664.0,91663.0,0.06522]
[1765200387689,0.06795,91664.0,91663.0,0.06522]
[1765200389394,0.07095,91664.0,91663.0,0.06522]
[1765200389900,0.06695,91664.0,91663.0,0.06522]
[1765200390085,0.06795,91664.0,91663.0,0.06522]
[1765200390787,0.06695,91664.0,91663.0,0.06522]
[1765200390987,0.06795,91664.0,91663.0,0.06522]
[1765200392293,0.004,91664.0,91663.0,0.06522]
[1765200394188,0.003,91664.0,91663.0,0.06522]
[1765200394391,0.003,91664.0,91663.0,0.06622]
[1765200394592,0.0109076,91672.0,91664.0,0.0109085]
[1765200394798,0.0109076,91672.0,91671.0,0.06522]
[1765200395704,0.07502091,91675.0,91674.0,0.0761273]
[1765200396793,0.00016371,91675.0,91674.0,0.0761273]
[1765200397000,0.00116371,91675.0,91674.0,0.0761273]
[1765200397798,0.06511371,91675.0,91674.0,0.0761273]
[1765200397999,0.06811371,91675.0,91674.0,0.0761273]
[1765200398594,0.06611371,91675.0,91674.0,0.0761273]
[1765200399090,0.06411371,91675.0,91674.0,0.0761273]
[1765200399300,0.06611371,91675.0,91674.0,0.0761273]
[1765200399693,0.03276371,91675.0,91674.0,0.0761273]
[1765200400093,0.03176371,91675.0,91674.0,0.0761273]
[1765200400293,0.06511371,91675.0,91674.0,0.0761273]
[1765200402694,0.0555,91694.0,91693.0,0.07645]
[1765200403403,0.02748,91694.0,91693.0,0.07645]
[1765200403598,0.0555,91699.0,91698.0,0.0679444]